Cogmind - Beta 13 @@@ ROGUE MODE // 2024.04.13 @ 16:58:47 Player: Cheeriohz Result: Destroyed by Y-54 Guardian with Gatling Laser Performance ------------- Evolutions (3) 1500 Regions Visited (5) 1000 Robots Destroyed (153) 765 Value Destroyed (5728) 5728 Prototype IDs (17) 340 Alien Tech Used (0) 0 Bonus (3821) 3821 TOTAL SCORE: 13154 Bonus ------- Triggered High Security 500 High Alert Combat Kills 2027 Follower Combat Kills 120 Entered Garrisons 200 Used RIF Installer 1000 Friendly Fire -26 Cogmind --------- Core Integrity 0/700 Matter 196/300 Energy 100/100 System Corruption 9% Temperature Cool (18) Movement Core (100) Ox1 Location -7/Factory Parts ------- > --- POWER (1) -------- (None) > --- PROPULSION (3) --- (None) > --- UTILITY (7) ------ Relay Coupler [NC] (26) > --- WEAPON (2) ------- Great Axe > --- INVENTORY (5) ---- Advanced Treads Advanced Treads Improved Propulsion Shielding Reactive Plating Peak State ------------ > --- POWER ------------ Improved Ion Engine Improved Deuterium Engine Light Angular Momentum Engine > --- PROPULSION ------- Medium Treads Armored Huge Wheel > --- UTILITY ---------- Improved Cooling System High-capacity Storage Unit Hardened Medium Armor Plating Medium Reactive Plating Improved Shield Generator Relay Coupler [NC] Power Bank > --- WEAPON ----------- Gatling Laser Cooled Particle Cannon > --- INVENTORY -------- Improved Deuterium Engine Improved Treads Medium Treads Improved Heat Sink Cooling System Large Storage Unit High-capacity Battery Structural Scanner Improved Medium Armor Plating Reactive Plating Medium Reactive Plating Powered Armor Hacking Suite High-powered Tractor Beam Heavy Particle Cannon Assault Cannon Mini Assault Cannon Rocket Launcher Rocket Launcher Remote Datajack [Rating: 63] Favorites ----------- Power Improved Ion Engine Engine Improved Ion Engine Power Core Nuclear Core Propulsion Improved Treads Treads Improved Treads Leg Aluminum Leg Wheel Armored Huge Wheel Flight Unit Surge Thruster Utility Hacking Suite Device Power Bank Storage Large Storage Unit Processor Improved Targeting Computer Hackware Hacking Suite Protection Hardened Medium Armor Plating Weapon Assault Cannon Energy Gun Cooled Pulse Rifle Energy Cannon Heavy Particle Cannon Ballistic Gun Assault Rifle Ballistic Cannon Assault Cannon Launcher Rocket Launcher Special Weapon Remote Datajack Slashing Weapon Great Axe Build | -11 -10 -10 -8 -8 -7 ------- Run | Yrd Mat Sub Mat Gar Fac Slots Evolved 6 | . . . 4 . 2 Power . | . . . . . . Propulsion 1 | . . . 1 . . Utility 5 | . . . 3 . 2 Weapon . | . . . . . . Parts Attached 124 | . 13 5 24 21 61 Power 14 | . 2 . 3 3 6 Engine 13 | . 2 . 3 2 6 Core 1 | . . . . 1 . Reactor . | . . . . . . Propulsion 25 | . 4 . 6 4 11 Treads 19 | . 2 . 6 4 7 Leg . | . . . . . . Wheel 5 | . 2 . . . 3 Hover . | . . . . . . Flight 1 | . . . . . 1 Utility 43 | . 4 2 7 6 24 Device 19 | . . . 2 4 13 Storage 5 | . 2 1 1 . 1 Processor 1 | . . . . . 1 Hackware 3 | . . . 1 . 2 Protection 15 | . 2 1 3 2 7 Artifact . | . . . . . . Weapon 42 | . 3 3 8 8 20 Energy Gun 6 | . . . 1 . 5 Energy Cannon 9 | . 2 2 2 . 3 Ballistic Gun 3 | . 1 1 1 . . Ballistic Cannon 11 | . . . 4 4 3 Launcher 10 | . . . . 4 6 Special Weapon 1 | . . . . . 1 Impact Weapon . | . . . . . . Slashing Weapon 2 | . . . . . 2 Piercing Weapon . | . . . . . . Special Melee Weapon . | . . . . . . Unidentified Prototypes 5 | . . . 1 . 4 Parts Lost 20 | . . . 2 . 18 Power 5 | . . . 1 . 4 Propulsion 5 | . . . . . 5 Utility 7 | . . . 1 . 6 Weapon 3 | . . . . . 3 Highest Loss Streak 9 | . . . 1 . 9 To Critical Strikes . | . . . . . . Average Slot Usage (%) 94 | . 98 92 95 99 90 Engine 12 | . 14 14 9 8 15 Core 1 | . . . . . 2 Treads 20 | . 16 28 26 26 13 Leg 1 | . 10 . . . . Wheel 1 | . 1 . . . 2 Device 10 | . . . 9 18 14 Storage 9 | . 14 9 14 9 5 Hackware 7 | . . . 8 9 14 Protection 9 | . 12 12 8 9 7 Energy Gun 1 | . . . . . 2 Energy Cannon 8 | . 11 13 8 9 4 Ballistic Gun 4 | . 15 14 1 . . Ballistic Cannon 4 | . . . 8 8 4 Naked Turns . | . . . . . . Heaviest Build 115 | 12 34 40 53 54 115 Greatest Support 72 | 20 46 46 69 69 72 Greatest Overweight (x) 9 | . 1 . 1 1 9 Average Overweight (x) . | . . . . . 1 Largest Inventory Capacity 20 | . 15 15 15 15 20 Average Capacity 15 | . 11 11 15 15 19 Most Carried 20 | . 12 15 15 15 20 Average Carried 14 | . 9 10 14 14 17 Final Capacity 15 | 8 15 15 15 15 5 Final Carried 15 | 6 12 15 15 15 4 Class Distribution -------------------- 52% | Mutant 35% | Scavenger-Mutant 11% | Hacker-Mutant Dominant Class ---------------- Mutant | -10/Materials Mutant | -10/Subcaves Mutant | -8/Materials Scavenger-Mutant | -8/Garrison Scavenger-Mutant | -7/Factory Resources | -11 -10 -10 -8 -8 -7 ----------- Run | Yrd Mat Sub Mat Gar Fac Matter Collected 2788 | 200 408 94 589 564 933 Remotely 136 | . . . . . 136 Salvage Created 4527 | . 572 191 811 913 2040 Parts 284 | . 41 13 57 70 103 Haulers Intercepted 9 | . 2 . 3 . 4 Recyclers Shooed 1 | . . . . . 1 Parts Field Recycled . | . . . . . . Retrieved Matter . | . . . . . . Parts Self-Destructed 6 | . . 6 . . . Prevented . | . . . . . . Kills | -11 -10 -10 -8 -8 -7 ------- Run | Yrd Mat Sub Mat Gar Fac Combat Hostiles Destroyed 123 | . 9 5 20 39 50 Melee 1 | . . . . . 1 Guns 25 | . 3 3 4 . 15 Cannons 53 | . 4 2 16 18 13 AOE 38 | . . . . 20 18 Classes Destroyed 21 | . 7 1 3 4 6 Worker 8 | . 1 . 1 . 6 Builder 6 | . 4 . . . 2 Tunneler 1 | . . . . . 1 Hauler 9 | . 2 . 3 . 4 Recycler 1 | . 1 . . . . Mechanic 2 | . . . . . 2 Operator 1 | . . . 1 . . Watcher 2 | . 1 . . . 1 Swarmer 34 | . 3 . 8 20 3 Cutter 1 | . . . . . 1 Grunt 38 | . 6 . 5 4 23 Brawler 1 | . . . . . 1 Duelist 1 | . . . 1 . . Protector 3 | . . . . 1 2 Sentry 18 | . . . 6 10 2 Demolisher 1 | . . . . 1 . Specialist 3 | . . . . 1 2 Hunter 8 | . . . . 2 6 Programmer 9 | . . . . . 9 Heavy 1 | . . . . . 1 Subdweller 5 | . . 5 . . . Best Kill Streak 15 | . 4 2 5 7 15 Combat Bots Only 11 | . 4 2 4 7 11 Max Kills in Single Turn 10 | . 2 1 2 4 10 Gunslinging . | . . . . . . Exploded 7 | . . . . 4 7 Melee 1 | . . . . . 1 Uniques/NPCs Destroyed . | . . . . . . Combat | -11 -10 -10 -8 -8 -7 -------- Run | Yrd Mat Sub Mat Gar Fac Hostile Shots Fired 1044 | . 45 16 103 106 774 Missed 392 | . 15 5 24 26 322 Damage Taken 7059 | . 345 230 957 912 4615 Core 992 | . 52 . 113 118 709 Absorbed by Shields 1280 | . . . . 341 939 Redirected to Shielding 9 | . 9 . . . . Ignored by Resistances 87 | . . . . . 87 Regen/Repaired (Parts) 320 | . . . 320 . . Core Remaining (%) 79 | 100 . 79 . 58 . Volleys Fired 325 | . 56 23 58 61 127 Largest 2 | . 2 2 2 2 2 Hottest 123 | . 88 110 119 119 123 Shots Fired 572 | . 96 37 111 102 226 Gun 196 | . 48 15 24 . 109 Cannon 346 | . 48 22 87 92 97 Launcher 30 | . . . . 10 20 Special . | . . . . . . Kinetic 210 | . 48 15 66 41 40 Thermal 332 | . 48 22 45 51 166 Explosive 30 | . . . . 10 20 Electromagnetic . | . . . . . . Robot Hit Streak 15 | . 10 7 11 8 15 Robot Miss Streak 5 | . 5 2 5 2 3 Penetration Max . | . . . . . . Secondary Targets . | . . . . . . Shots Hit Robots 348 | . 57 21 61 51 158 Core Hits 265 | . 19 8 29 49 160 Critical Kills 5 | . 4 . . 1 . Critical Parts Destroyed 1 | . 1 . . . . Critical Strikes 11 | . 5 . 2 2 2 Burn 1 | . . . . . 1 Meltdown 5 | . 4 . . 1 . Destroy 1 | . 1 . . . . Blast 3 | . . . 2 1 . Sever 1 | . . . . . 1 Melee Attacks 2 | . . . . . 2 Impact . | . . . . . . Slashing 2 | . . . . . 2 Piercing . | . . . . . . Sneak Attacks . | . . . . . . Combat Hostiles . | . . . . . . Follow-up Attacks . | . . . . . . Damage Inflicted 12369 | . 930 419 1483 2561 6976 Guns 2702 | . 353 211 209 . 1929 Cannons 5114 | . 577 208 1274 1229 1826 Explosions 4446 | . . . . 1332 3114 Melee 80 | . . . . . 80 Ramming 27 | . . . . . 27 Kinetic 2577 | . 353 211 820 490 703 Thermal 5239 | . 577 208 663 739 3052 Explosive 4446 | . . . . 1332 3114 Electromagnetic . | . . . . . . Impact . | . . . . . . Slashing 80 | . . . . . 80 Piercing . | . . . . . . Highest Corruption 9 | . . . . . 9 Average Corruption 5 | . . . . . 5 Corruption Purged . | . . . . . . Corruption Blocked . | . . . . . . Effects 44 | . . . . . 44 Message Errors 10 | . . . . . 10 Matter Fused 10 | . . . . . 10 Heat Flow Errors 5 | . . . . . 5 Energy Discharges 4 | . . . . . 4 Parts Rejected 2 | . . . . . 2 Data Loss (minor) 7 | . . . . . 7 Data Loss (major) 2 | . . . . . 2 Alerts 2 | . . . . . 2 Weapon Failures 2 | . . . . . 2 Overload Shots . | . . . . . . Overflow Damage 125 | . 13 . 12 90 10 Projectiles 27 | . 13 . 12 . 2 Explosions 98 | . . . . 90 8 Melee . | . . . . . . Knockbacks 14 | . . . 5 6 3 Impact . | . . . . . . Kinetic 14 | . . . 5 6 3 Secondary . | . . . . . . Self-Inflicted Damage 281 | . . . . 168 113 Shots 8 | . . . . 5 3 Rammed 4 | . . . . . 4 Targets Rammed 4 | . . . . . 4 Kicked . | . . . . . . Crushed . | . . . . . . Highest Temperature 501 | . 207 6 432 105 501 Average Temperature 106 | . 67 4 131 24 128 Received Heat Transfer 1981 | . 111 18 279 201 1372 Effects 26 | . . . 6 . 20 Shutdowns 9 | . . . . . 9 Energy Bleed 6 | . . . 3 . 3 Interference 8 | . . . 3 . 5 Damage (major) 3 | . . . . . 3 Siege Activations . | . . . . . . Robots Corrupted . | . . . . . . Combat Hostiles . | . . . . . . Parts Fried . | . . . . . . Impact Corruptions . | . . . . . . Robots Melted 8 | . 4 . . 1 3 Combat Hostiles 6 | . 2 . . 1 3 Parts Melted 25 | . 6 . 1 3 15 Heat Transferred 8806 | . 1110 333 1036 917 5410 Parts Sabotaged . | . . . . . . Parts Stolen . | . . . . . . Parts Stripped . | . . . . . . Power Chain Reactions . | . . . . . . Alert | -11 -10 -10 -8 -8 -7 ------- Run | Yrd Mat Sub Mat Gar Fac Peak Influence 1973 | . 187 . 414 1656 1973 Initial 869 | . . . . 193 869 Average 623 | . 70 . 212 1060 831 Maximum Alert Level 5 | . . . 2 5 5 Low Security (%) 27 | . 100 . 38 2 . Level 1 14 | . . . 61 11 4 Level 2 17 | . . . . 4 41 Level 3 21 | . . . . 34 33 Level 4 11 | . . . . 25 13 Level 5 4 | . . . . 22 . High Security 3 | . . . . . 7 Max Security . | . . . . . . Squads Dispatched 28 | . 1 . 1 . 26 Investigation 1 | . . . . . 1 Extermination 5 | . . . . . 5 Reinforcement 8 | . 1 . . . 7 Assault 10 | . . . . . 10 Garrison 4 | . . . 1 . 3 Intercept . | . . . . . . Searches Triggered . | . . . . . . Construction Impeded 1 | . . . . . 1 Haulers Reinforced 1 | . . . . . 1 Active Scanning Responses . | . . . . . . Cargo Convoy Interrupts 1 | . . . . . 1 Stealth | -11 -10 -10 -8 -8 -7 --------- Run | Yrd Mat Sub Mat Gar Fac Distress Signals 10 | . 1 . 6 . 3 Communications Jammed . | . . . . . . Distress Signals . | . . . . . . Times Spotted 204 | . 25 5 30 43 101 Peak Tracking Total 21 | . 4 2 5 8 21 Tactical Retreats 12 | . 3 . 2 2 5 Traps | -11 -10 -10 -8 -8 -7 ------- Run | Yrd Mat Sub Mat Gar Fac Traps Triggered 8 | . 1 . . 2 5 Indirectly . | . . . . . . Trap Hack Attempts . | . . . . . . Triggered . | . . . . . . Disarmed . | . . . . . . Reprogrammed . | . . . . . . Reused . | . . . . . . Traps Extracted . | . . . . . . Installed . | . . . . . . Triggered . | . . . . . . Machines | -11 -10 -10 -8 -8 -7 ---------- Run | Yrd Mat Sub Mat Gar Fac Machines Disabled 16 | . . 1 1 5 9 Max in Single Turn 4 | . . 1 1 2 4 Garrison Relay 3 | . . . . 3 . Phase Generator 1 | . . . . 1 . Machines Repaired . | . . . . . . Machines Dismantled . | . . . . . . Machines Sabotaged . | . . . . . . Overloaded Fab Kills . | . . . . . . Hacking | -11 -10 -10 -8 -8 -7 --------- Run | Yrd Mat Sub Mat Gar Fac Machines Accessed 26 | . 7 1 7 3 8 Terminals 20 | . 6 . 4 3 7 Fabricators . | . . . . . . Repair Stations 3 | . . . 2 . 1 Recycling Units 1 | . 1 . . . . Scanalyzers . | . . . . . . Garrison Access 1 | . . . 1 . . Total Hacks 70 | . 24 1 20 7 18 Successful 28 | . 9 1 11 1 6 Failed 42 | . 15 . 9 6 12 Catastrophic 10 | . 4 . . 2 4 Database Lockouts . | . . . . . . Manual 39 | . 20 . 10 . 9 Terminals 55 | . 22 . 10 7 16 Fabricators . | . . . . . . Repair Stations 10 | . . . 8 . 2 Recycling Units 2 | . 2 . . . . Scanalyzers . | . . . . . . Garrison Access 2 | . . . 2 . . Terminal Hacks 11 | . 5 1 1 1 3 Robot Analysis 4 | . 2 . 1 . 1 Prototype ID Bank 1 | . 1 . . . . Branch Access Points 1 | . . . . . 1 Terminal Index 1 | . 1 . . . . Alert Level 1 | . 1 . . . . Unreport Threat 1 | . . . . . 1 Patrol Navigation 1 | . . . . 1 . Derelict Proto ID Bank 1 | . . 1 . . . Fabricator Hacks . | . . . . . . Repair Station Hacks 7 | . . . 7 . . Scan Component 4 | . . . 4 . . Repair 3 | . . . 3 . . Recycling Unit Hacks . | . . . . . . Scanalyzer . | . . . . . . Garrison Access Hacks 1 | . . . 1 . . Unlock Access 1 | . . . 1 . . Unauthorized Hacks 9 | . 4 . 2 . 3 Terminals 8 | . 3 . 2 . 3 Botnet 8 | . 3 . 2 . 3 Fabricators . | . . . . . . Repair Stations . | . . . . . . Recycling Units 1 | . 1 . . . . Mask 1 | . 1 . . . . Scanalyzers . | . . . . . . Garrison Access . | . . . . . . Data Cores Recovered 1 | . . . 1 . . Used 1 | . . . 1 . . Hacking Detections 24 | . 7 . 6 3 8 Full Trace Events 2 | . . . . 2 . Feedback Events . | . . . . . . Feedback Blocked . | . . . . . . Robot Schematics Acquired . | . . . . . . Robots Built . | . . . . . . Authchips . | . . . . . . Time . | . . . . . . Total Robot Build Rating . | . . . . . . Part Schematics Acquired . | . . . . . . Parts Built . | . . . . . . Authchips . | . . . . . . Time . | . . . . . . Total Part Build Rating . | . . . . . . Parts Repaired 3 | . . . 3 . . Time 96 | . . . 96 . . Parts Recycled . | . . . . . . Recycled Matter . | . . . . . . Retrieved Matter . | . . . . . . Retrieved Components . | . . . . . . Parts Scanalyzed . | . . . . . . Part Schematics Acquired . | . . . . . . Parts Damaged . | . . . . . . Bothacking | -11 -10 -10 -8 -8 -7 ------------ Run | Yrd Mat Sub Mat Gar Fac Used RIF Installer 2 | . . . . 2 . Watcher Feeds 1 | . . . . 1 . Robots Hacked . | . . . . . . Non-combat . | . . . . . . Combat . | . . . . . . Robot Hacks Applied . | . . . . . . Relay Couplers Released 15 | . . . . 12 3 Machine Destruction 12 | . . . . 12 . Programmers 3 | . . . . . 3 Attached 1 | . . . . . 1 Fabnet Peak Effective % . | . . . . . . Robots Rewired 3 | . . . . 3 . Allies Hacked . | . . . . . . Hacks Repelled . | . . . . . . Allies | -11 -10 -10 -8 -8 -7 -------- Run | Yrd Mat Sub Mat Gar Fac Total Allies 3 | . . . . 3 . Largest Group 3 | . . . . 3 3 Highest-Rated Group 101 | . . . . 101 101 Highest-Rated Ally 39 | . . . . 39 39 Total Orders . | . . . . . . Ally Attacks 36 | . . . . . 36 Total Damage 559 | . . . . . 559 Kills 8 | . . . . . 8 Allies Corrupted . | . . . . . . Allies Melted . | . . . . . . Intel | -11 -10 -10 -8 -8 -7 ------- Run | Yrd Mat Sub Mat Gar Fac Robot Analysis Total 4 | . 2 . 1 . 1 Derelict Logs Recovered 2 | . . 2 . . . Drone Launches . | . . . . . . Drone Recoveries . | . . . . . . Exploration | -11 -10 -10 -8 -8 -7 ------------- Run | Yrd Mat Sub Mat Gar Fac Turns Passed 8204 | . 1453 1114 1181 1593 2863 Spaces Moved 4040 | 1 805 635 503 842 1254 Core 143 | . . . . . 143 Treads 3091 | . 442 635 503 842 669 Legs 317 | 1 316 . . . . Wheels 481 | . 47 . . . 434 Hover . | . . . . . . Flight 8 | . . . . . 8 Fastest Speed 50 | 120 90 160 160 160 50 Average Speed 164 | 120 145 160 161 160 182 Slowest Speed 480 | 120 190 160 240 240 480 Overloaded Moves . | . . . . . . Propulsion Burnouts . | . . . . . . Robots Hopped . | . . . . . . Cave-ins Triggered . | . . . . . . Exploration Rate (%) 50 | 2 99 31 39 96 35 Regions Visited 5 Branch Regions 1 Pre-discovered Areas . | . . . . . . Known Exits Taken 1 | . . . 1 . . Unknown Exits Taken 3 | 1 1 1 . . . Scrap Searched 4 | . . 4 . . . Spaces Dug 24 | . . . . 6 18 Terrain Destroyed 208 | . . 1 12 103 92 Melee . | . . . . . . Projectile 21 | . . 1 12 . 8 AOE 187 | . . . . 103 84 Terrain Rammed . | . . . . . . Walls Destroyed . | . . . . . . Machines Disabled . | . . . . . . Actions | -11 -10 -10 -8 -8 -7 --------- Run | Yrd Mat Sub Mat Gar Fac Total 5036 | . 1000 697 768 986 1585 Wait 359 | . 96 14 143 23 83 Move 4034 | . 804 634 502 840 1254 Hop . | . . . . . . Pick Up 65 | . 12 11 20 5 17 Fast Attach 48 | . 9 5 7 8 19 Attach 24 | . . . 6 . 18 Detach 19 | . 3 2 1 . 13 Swap 52 | . 4 . 11 13 24 Drop 82 | . 16 6 19 17 24 Fire 325 | . 56 23 58 61 127 Melee 2 | . . . . . 2 Ram 3 | . . . . . 3 Kick . | . . . . . . Crush 1 | . . . . . 1 Escape Stasis . | . . . . . . Rewire 19 | . . . . 19 . Trap . | . . . . . . Miscellaneous 3 | . . 2 1 . . Route ------- -11/Scrapyard -10/Materials (discovered 6 exits: [*Mat x3] / [*Min x2] / *Sub) -10/Subcaves (discovered 2 exits: *Mat / Rec) -8/Materials (discovered 2 exits: *Fac / Gar) -8/Garrison (discovered 3 exits: *Fac x3) -7/Factory (discovered 4 exits: [*Fac x2] / *Low x2) History --------- Turn | Location | Event 1 | -11/Scrapyard | Discovered new exit (range 0) 1 | -11/Scrapyard | Entered Materials 152 | -10/Materials | Discovered new exit (range 12) 316 | -10/Materials | Build established: Mutant 618 | -10/Materials | Discovered new exit (range 11) 728 | -10/Materials | Discovered new exit (range 3) 935 | -10/Materials | Discovered new exit (range 7) 1112 | -10/Materials | Discovered new exit (range 10) 1335 | -10/Materials | Discovered new exit (range 12) 1454 | -10/Materials | Entered Subcaves 1461 | -10/Subcaves | Learned Materials interactive machine intel 2198 | -10/Subcaves | Visited 4L-MR0's lab 2217 | -10/Subcaves | Found Power Bank 2307 | -10/Subcaves | Shifting Twisted Machinery released Scrap Shield 2310 | -10/Subcaves | Shifting Twisted Machinery released Sub. Monowheel 2325 | -10/Subcaves | Discovered new exit (range 7) 2345 | -10/Subcaves | Identified exit to Recycling 2568 | -10/Subcaves | Entered Materials 2568 | -8/Materials | Evolved 4 slots: Propulsion x1, Utility x3 2569 | -8/Materials | Loaded intel: 18 interactive machine locations 2890 | -8/Materials | Repaired Imp. Treads 2933 | -8/Materials | Repaired Imp. Treads 3171 | -8/Materials | Repaired Imp. Treads 3349 | -8/Materials | Build established: Scavenger-Mutant 3590 | -8/Materials | Garrison activated, responded to threat 3654 | -8/Materials | Discovered new exit (range 16) 3676 | -8/Materials | Identified exit to Garrison 3703 | -8/Materials | Build established: Mutant 3749 | -8/Materials | Entered Garrison 3899 | -8/Garrison | Triggered checkpoint 3924 | -8/Garrison | Garrison Relay disabled 3993 | -8/Garrison | Triggered checkpoint 4004 | -8/Garrison | Destroyed 7 combat bots 4063 | -8/Garrison | Triggered checkpoint 4082 | -8/Garrison | Discovered new exit (range 11) 4179 | -8/Garrison | Garrison Relay disabled 4215 | -8/Garrison | Installed Relay Interface Framework 4349 | -8/Garrison | Build established: Scavenger-Mutant 4375 | -8/Garrison | Phase Generator disabled 4407 | -8/Garrison | Triggered checkpoint 4489 | -8/Garrison | Discovered new exit (range 13) 4643 | -8/Garrison | Triggered checkpoint 4675 | -8/Garrison | Expanded RIF knowledge: Watcher Feeds 4741 | -8/Garrison | Triggered checkpoint 4790 | -8/Garrison | Discovered new exit (range 9) 4923 | -8/Garrison | Triggered checkpoint 4939 | -8/Garrison | Garrison Relay disabled 5342 | -8/Garrison | Entered Factory 5342 | -7/Factory | Accompanied by 3 allies 5342 | -7/Factory | Evolved 2 slots: Utility x2 5344 | -7/Factory | Attached Power Bank, gained temporary slots: Power x3 5584 | -7/Factory | Found Powered Armor 5770 | -7/Factory | Discovered new exit (range 7) 5906 | -7/Factory | Identified exit to Lower Caves 6735 | -7/Factory | Build established: Hacker-Mutant 7065 | -7/Factory | Cargo convoy interrupted 7115 | -7/Factory | Destroyed 11 combat bots 7384 | -7/Factory | First assault squad dispatched 7771 | -7/Factory | Build established: Mutant 7886 | -7/Factory | Discovered new exit (range 16) 7925 | -7/Factory | Garrison activated, responded to threat 7952 | -7/Factory | Destroyed 7 combat bots 7953 | -7/Factory | Lost 5 parts (2p3u) 7988 | -7/Factory | High security lockdown imminent 8068 | -7/Factory | High security lockdown engaged 8108 | -7/Factory | Core integrity fell below 50% 8138 | -7/Factory | Lost 9 parts (4n2u3w) 8187 | -7/Factory | Core integrity fell below 20% 8205 | -7/Factory | Destroyed by Y-54 Guardian with Gatling Laser Last Messages --------------- 08166_ >> Watcher Feeds: Established visual feed link with W-25 Informer. 08169_ >> Watcher Feeds: Feed link from W-25 Informer lost. 08170_ System corrupted: Component data lost. 08172_ >> Watcher Feeds: Established visual feed link with W-25 Informer. 08180_ >> Watcher Feeds: Feed link from W-25 Informer lost. 08184_ Knocked back. 08186_ C-17 Slicer destroyed. 08187_ >> Watcher Feeds: Established visual feed link with W-25 Informer. 08188_ ALERT: Assault forces dispatched. 08189_ MO,UA5NCX||PVAS LXBAZ|A>QB,H:3ZZ4T 08189_ >> Watcher Feeds: Established visual feed link with W-25 Informer. 08190_ >> Watcher Feeds: Feed link from W-25 Informer lost. 08190_ C-17 Slicer Lgt. Nuclear Core severed. 08192_ Great Axe severed. 08192_ Acquired Great Axe. 08194_ C-17 Slicer destroyed. 08195_ Acquired 20 matter. 08198_ Acquired Surge Thruster. 08202_ >> Watcher Feeds: Feed link from W-25 Informer lost. 08205_ Surge Thruster destroyed. Map ----- +----------------------------------------------------+ | ???????????????????# #??????????# ^ """ | | ???????????????????# #??????????# Y" | | ###+#########??????# #??????????# ] !=! """ | | #??????# ############ !! ! | | ? #??????# ! | | ??? ########+############## | | ???? # #????????# | | ????? # " " " " " #????????###### | | ??????# # " " " " " #?????????????###### | | ??????# # " " " " " #??????????????????# | | ??????# # " " " " " #??????????????????# | | ??????# # " " " " " #?????####?????????# "" | | ??????# + " " " " " #????[ ????????# "" | | ??????+ # " " " " " #??? """?######### "" | | ??????# # " " " " " #??# """ # | | ??????# # " " " " "?????# """ # | | ??????# # ??????# + | | ??????# # ???????# """ # | | ??????# #############???# """ # ######### | | ??????# ## ##### ##?? """?# #???# | | ??????# # ???! ?# #???# | | ??????# # ##???####??# #???# | | ??????# # ##????????# #???# ! | | ####### # ##??###### #???# ! | | Y Y ####* g #???# = | | # @ l / g #???# | | + ! ### l g ######### | | """ # ###?# | | """ # #???# | | "" " ##### ##???# "" """"""""" | | "" "F" #???# ! #????# """ | | "" """ #???# " " #????# "F """"""""" | | #???##### ###????# """ | | #???????########???????# "" """"""""" | | ####??????????????????????# | | #?????????????????????????# """"""""" | | #+##+??????????????????????????# | | ???????????????????????????????# """"""""" | | ???????????????????????????????# ? | | ???????????????????????????????? ?? """"""""" | | ???????????????????????????????? ????? | | ????????????????????????????????????????""""""""" | | ????????????????????????????????????????? | | ???????????????????????????????????????????"""""" | | ????????????????????????????????????????????? | | ?????????????????????????????????????????????"""" | | ??????????????????????????????????????????????? | | ????????????????????????????????????????????????" | | ???????????????????????????????????????????????? | | ???????????????????????????????????????????????? | +----------------------------------------------------+ Best States ------------- Heat Dissipation 61 Energy Generation 41 Energy Capacity 810 Matter Stores 300 Matter Capacity 300 Sight Range 16 Terrain Scan Density 10 Armor Coverage 800 Resistance: KI 30 Propulsion Shielding 33 Evasion (%) 55 Targeting Accuracy 6 Recoil Reduction 3 Offensive Hacking 10 Defensive Hacking 10 Relay Coupler Types 1 Relay Coupler Value 26 Item Schematics ----------------- None Robot Schematics ------------------ None Fabricated ------------ Nothing Alien Tech Used ----------------- None Achievements -------------- None Challenges ------------ None Game ------ Seed FocalColdMediator Manual? 0 Play Time 01:18:21 Cumulative 116.8 hours Start 2024.04.13 @ 15:20:38 End 2024.04.13 @ 16:58:47 Sessions 1 Manual Loads 0 Difficulty Rogue Special Mode None Game No. 111 Rogue 111 Adventurer 0 Explorer 0 Win Type - Total 3 Types 2/0/0/1/0/0/0/0/0 Lore% 51 Gallery% 69 Achievement% 52 Wizard Run 0 Options --------- Layout 1 ASCII 0 Keyboard 1 Movement Numpad Keybinds 0 Fullscreen 1 Font 32/SmallcapsGlow Map View 77x35 Zoom Use 0% Tactical HUD 1 Map Filters NONE Filters NONE Steam 1 RUN: 1356d065-21e6-401a-ba6c-e4ac06ffdeb3